bitfinex/quotes_ETHUSD_20250110
["timestamp","ask_amount","ask_price","bid_price","bid_amount"]
[1736515426060,0.41875721,3309.0,3308.8,0.217]
[1736515426255,3.02215,3308.9,3308.8,0.217]
[1736515427275,3.02215,3308.9,3308.5,0.217]
[1736515427453,0.03022201,3308.8,3308.5,0.217]
[1736515428593,0.03022201,3308.8,3308.6,0.05554852]
[1736515434808,3.05247201,3308.8,3308.6,0.05554852]
[1736515435724,3.05247201,3308.8,3308.7,0.05573405]
[1736515436123,3.02278,3308.3,3308.2,0.214]
[1736515436283,0.03022201,3308.4,3307.7,0.7994]
[1736515436487,3.02284,3308.2,3307.8,0.214]
[1736515436689,0.03022201,3308.1,3307.8,0.27020727]
[1736515437526,0.03022201,3308.3,3307.8,0.27020727]
[1736515437920,3.05295201,3308.3,3307.8,0.27020727]
[1736515439000,0.03022201,3308.3,3307.8,0.27020727]
[1736515439199,9.18929664,3308.7,3307.8,0.27020727]
[1736515439400,8.37449664,3308.7,3308.0,0.7736]
[1736515439829,0.03022201,3308.6,3308.1,0.05624271]
[1736515440212,3.05264201,3308.6,3308.1,0.05624271]
[1736515441428,0.03022201,3308.6,3308.1,0.05624271]
[1736515441614,3.05260201,3308.7,3308.1,0.05624271]
[1736515441802,3.0226,3308.5,3308.1,0.05624271]
[1736515442010,0.03022201,3308.4,3307.8,1.0453]
[1736515442196,0.03022201,3308.4,3307.9,0.05634696]
[1736515443636,0.03022201,3308.4,3308.0,0.214]
[1736515443931,3.05289201,3308.4,3308.1,0.05620935]
[1736515444137,3.02272,3308.3,3308.1,0.05620935]
[1736515444319,0.03022201,3308.2,3308.1,0.05620935]
[1736515444500,0.03022201,3308.2,3308.0,0.214]
[1736515444900,5.80529712,3308.5,3308.1,0.05638866]
[1736515444901,0.03022201,3308.3,3308.1,0.05638866]
[1736515445097,0.03022201,3308.3,3308.0,0.214]
[1736515445496,0.03022201,3308.3,3308.1,0.056397]
[1736515445723,0.03022201,3308.3,3308.0,0.214]
[1736515446029,0.03022201,3308.4,3308.1,0.056397]
[1736515446231,3.02257,3308.5,3308.1,0.056397]
[1736515446232,6.12063664,3309.0,3308.2,0.8225]
[1736515446405,0.03022201,3308.9,3308.2,0.8225]
[1736515446612,0.03022201,3308.9,3308.3,0.05626357]
[1736515447517,5.35213664,3309.0,3308.4,0.8001]
[1736515447837,5.35213664,3309.0,3308.5,0.05610096]
[1736515448335,5.35213664,3309.0,3308.5,3.10881357]
[1736515448521,5.35213664,3309.0,3308.6,0.7624]
[1736515448915,5.35213664,3309.0,3308.7,0.05599675]
[1736515449236,3.02153,3309.6,3308.8,0.7624]
[1736515449449,0.03022201,3309.5,3308.9,0.214]
[1736515449824,8.37346664,3309.8,3309.0,0.7624]
[1736515449973,0.03022201,3309.7,3309.0,0.81824046]
[1736515450129,3.05164201,3309.7,3309.0,0.81824046]
[1736515453868,3.02153,3309.6,3309.0,0.81824046]
[1736515454076,0.03022201,3309.5,3309.0,0.81824046]
[1736515454276,3.02196,3309.2,3309.1,0.214]
[1736515455673,3.02196,3309.2,3308.3,3.02267]
[1736515455848,0.03022201,3309.1,3308.7,0.214]
[1736515456260,0.03022201,3309.1,3308.8,0.0553693]
[1736515456692,0.03022201,3309.1,3308.8,0.8666693]
[1736515460202,0.03022201,3309.2,3308.8,0.8666693]
[1736515460389,3.02178,3309.3,3308.8,0.8666693]
[1736515461057,0.03022201,3309.2,3308.8,0.8666693]
[1736515461257,3.02215,3308.9,3308.8,0.0553693]
[1736515461498,3.02215,3308.9,3307.9,0.59294458]
[1736515461499,0.785,3308.9,3308.1,0.7901]
[1736515461797,3.02249,3308.6,3308.2,0.214]
[1736515461963,3.02262,3308.4,3308.3,0.214]
[1736515462501,3.02279,3308.3,3308.1,0.214]
[1736515462699,3.05301201,3308.2,3307.6,0.7931]
[1736515462906,3.05301201,3308.2,3306.6,4.237]
[1736515462907,3.02315,3307.8,3307.7,0.213]
[1736515463203,3.02325,3307.7,3307.5,0.213]
[1736515463384,0.03022201,3307.6,3307.4,0.213]
[1736515464158,3.05360201,3307.6,3307.4,0.213]
[1736515464763,3.02373,3307.2,3306.9,0.7931]
[1736515464963,3.02389,3307.0,3306.5,0.213]
[1736515465199,0.03022201,3306.9,3306.6,0.213]
[1736515466206,0.03022201,3306.9,3306.7,0.213]
[1736515466401,0.03022201,3306.9,3306.6,0.214]
[1736515466402,3.02417,3306.7,3306.6,0.214]
[1736515466705,3.02417,3306.7,3306.5,0.214]
[1736515466905,0.03022201,3306.6,3306.5,0.214]
[1736515467203,3.02398,3306.9,3306.5,0.214]
[1736515467702,0.03022201,3307.1,3306.6,0.7623]
[1736515467874,0.03022201,3307.2,3306.6,0.7623]
[1736515468200,0.03022201,3307.3,3306.7,0.214]
[1736515468411,3.05387201,3307.3,3306.7,0.214]
[1736515468829,3.02373,3307.2,3306.7,0.214]
[1736515468983,0.03022201,3307.1,3306.7,0.214]
[1736515469182,3.02373,3307.2,3306.8,0.05554599]
[1736515469422,0.03022201,3307.1,3306.7,0.214]
[1736515469724,3.02373,3307.2,3306.8,0.05642615]
[1736515470105,0.03022201,3307.1,3306.7,0.214]
[1736515470514,0.03022201,3307.1,3306.8,0.05642615]
[1736515470821,3.35942721,3307.1,3306.9,0.214]
[1736515470981,3.35942721,3307.1,3306.6,0.7623]
[1736515471180,0.33561721,3307.1,3306.7,0.214]
[1736515471385,3.02393,3307.0,3306.8,0.0564011]
[1736515471585,0.03022201,3306.9,3306.7,0.214]
[1736515471829,0.03022201,3306.9,3306.8,0.0564011]
[1736515472183,0.03022201,3306.9,3306.7,0.214]
[1736515472398,0.03022201,3306.9,3306.8,0.0564011]
[1736515472399,5.83698913,3306.9,3306.8,0.0564011]
[1736515472603,5.80676712,3306.9,3306.7,0.214]
[1736515472805,0.03022201,3306.8,3306.2,0.8072]
[1736515473100,0.03022201,3306.8,3306.3,0.27066196]
[1736515473333,0.03022201,3306.8,3306.3,0.05666196]
[1736515473558,0.82322201,3306.8,3306.3,0.05666196]
[1736515473707,0.03022201,3306.8,3306.4,0.214]
[1736515474034,3.02395,3307.0,3306.4,0.214]
[1736515474894,3.02399,3306.9,3306.4,0.214]
[1736515475317,3.05434201,3306.8,3306.4,0.214]
[1736515478442,3.05434201,3306.8,3306.5,0.214]
[1736515480132,3.02393,3307.0,3306.5,0.214]
[1736515480325,0.793,3307.1,3306.5,0.214]
[1736515480538,3.024,3306.9,3306.5,0.214]
[1736515480760,3.024,3306.9,3306.6,0.05681853]
[1736515481259,0.03022201,3306.8,3306.6,0.05681853]
[1736515481632,0.03022201,3306.8,3306.5,0.214]
[1736515485322,3.05430201,3306.8,3306.5,0.214]
[1736515485925,0.7832,3306.7,3306.4,0.214]
[1736515486120,0.03022201,3306.6,3306.4,0.214]
[1736515487253,0.03022201,3306.6,3306.5,0.05687874]
[1736515488039,0.03022201,3306.6,3306.4,0.214]
[1736515488681,3.02434,3306.5,3306.4,0.214]
[1736515488986,3.05449201,3306.6,3306.4,0.214]
[1736515490083,3.43826121,3306.6,3306.4,0.214]
[1736515490406,3.43826121,3306.6,3305.8,0.779]
[1736515490407,3.43826121,3306.6,3306.3,0.214]
[1736515490959,3.43826121,3306.6,3306.4,0.05693509]
[1736515491371,3.05449201,3306.6,3306.3,0.214]
[1736515491568,0.03022201,3306.6,3306.3,0.214]
[1736515491873,3.02409,3306.8,3306.4,0.83743509]
[1736515492391,0.03022201,3306.7,3306.4,0.7805]
[1736515492787,3.02409,3306.8,3306.5,0.05701233]
[1736515492986,0.03022201,3306.7,3306.4,0.7805]
[1736515493297,0.03022201,3306.7,3306.5,0.05701233]
[1736515493498,3.05442201,3306.7,3306.5,0.05701233]
[1736515493883,3.05442201,3306.7,3306.3,0.214]
[1736515494085,3.05442201,3306.7,3306.6,0.05696016]
[1736515494262,3.05442201,3306.7,3306.3,0.214]
[1736515494462,3.05442201,3306.7,3306.4,0.05706451]
[1736515494873,3.02402,3306.9,3306.4,0.05706451]
[1736515495499,5.35213664,3307.0,3306.4,0.05706451]
[1736515495865,5.35213664,3307.0,3306.3,0.24424315]
[1736515496074,5.35213664,3307.0,3306.4,0.05703528]
[1736515496300,0.03022201,3306.9,3306.4,0.05703528]
[1736515499921,5.35213664,3307.0,3306.5,0.8099]
[1736515500225,0.03022201,3306.9,3306.6,0.211]
[1736515500423,5.35213664,3307.0,3306.6,0.211]
[1736515500715,5.35213664,3307.0,3306.7,0.0549078]
[1736515501074,0.03022201,3306.9,3306.7,0.0549078]
[1736515501273,0.03022201,3306.9,3306.6,0.211]
[1736515501511,5.35213664,3307.0,3306.7,0.05481179]
[1736515504313,0.03022201,3307.1,3306.7,0.05481179]
[1736515505380,3.18236425,3308.1,3306.7,0.05481179]
[1736515505381,5.35213664,3307.6,3307.0,3.02381]
[1736515505702,5.35213664,3307.6,3307.3,0.7786]
[1736515506106,5.35213664,3307.6,3307.4,0.05430061]
[1736515506320,5.35213664,3307.6,3307.5,0.211]
[1736515506634,5.35213664,3307.6,3307.5,0.26524847]
[1736515507397,0.7666,3308.3,3307.5,0.26524847]
[1736515507598,0.03022201,3308.2,3307.5,3.28865847]
[1736515508600,0.03022201,3308.2,3307.5,0.26524847]
[1736515512935,3.02271,3308.3,3307.6,0.7806]
[1736515513237,0.03022201,3308.2,3307.6,0.7806]
[1736515513426,0.03022201,3308.2,3307.7,0.05341806]
[1736515514450,0.03022201,3308.4,3307.7,0.05341806]
[1736515514631,6.02255,3308.5,3307.7,0.05341806]
[1736515514809,5.35213664,3308.6,3307.8,0.804]
[1736515515013,0.03022201,3308.4,3307.9,0.0532387]
[1736515515725,5.35213664,3308.6,3307.9,0.0532387]
[1736515516040,0.03022201,3308.5,3307.9,0.0532387]
[1736515516250,0.03022201,3308.5,3308.0,0.8246]
[1736515516426,0.03022201,3308.5,3308.1,0.0530844]
[1736515519458,3.05255201,3308.7,3308.1,0.0530844]
[1736515521765,3.02242,3308.6,3308.1,0.0530844]
[1736515522056,0.03022201,3308.5,3308.1,0.0530844]
[1736515522757,0.03022201,3308.5,3308.0,0.8246]
[1736515522758,3.02242,3308.6,3308.0,0.8246]
[1736515523059,0.03022201,3308.5,3308.1,0.05300097]
[1736515527883,0.03022201,3308.7,3308.1,0.05300097]
[1736515528780,5.35213664,3308.9,3308.6,0.7921]
[1736515528922,2.94230968,3309.2,3308.8,0.7921]
[1736515529126,5.35213664,3309.3,3308.8,0.7921]
[1736515529327,5.35213664,3309.3,3308.9,0.05229631]
[1736515529770,0.03022201,3309.2,3308.9,0.05229631]
[1736515531161,5.35213664,3309.3,3308.9,0.05229631]
[1736515531334,0.03022201,3309.2,3308.9,0.05229631]
[1736515532888,5.35213664,3309.3,3308.9,0.05229631]
[1736515533101,0.7725,3309.7,3308.9,0.05229631]
[1736515533400,6.10223664,3309.9,3308.9,3.07436631]
[1736515533605,0.03022201,3309.8,3308.9,3.07436631]
[1736515533787,9.12354664,3309.9,3308.9,3.07436631]
[1736515533991,0.03022201,3309.8,3309.1,0.76]
[1736515534500,0.03022201,3309.8,3309.2,0.05172313]
[1736515535004,6.10223664,3309.9,3309.4,0.76]
[1736515535005,5.35213664,3309.9,3309.4,0.76]
[1736515535198,5.35213664,3309.9,3309.4,3.78168]
[1736515535404,5.35213664,3309.9,3309.5,0.05155855]
[1736515535604,0.03022201,3310.1,3309.6,0.21]
[1736515536007,0.03022201,3310.1,3309.7,0.05136271]
[1736515536326,0.03022201,3310.2,3309.7,0.05136271]
[1736515537822,3.0,3310.3,3309.7,0.05136271]
[1736515537994,6.10223664,3310.4,3309.7,0.05136271]
[1736515538900,5.35213664,3310.4,3309.8,0.7812]
[1736515539102,0.03022201,3310.3,3309.8,0.7812]
[1736515539302,0.03022201,3310.3,3309.9,0.05118357]
[1736515539506,5.35213664,3311.1,3310.4,0.8295]
[1736515539717,5.35213664,3311.1,3310.5,0.21]
[1736515539929,5.35213664,3311.1,3310.5,3.28068511]
[1736515540168,0.7973,3311.5,3310.5,3.28068511]
[1736515540451,5.35213664,3311.8,3310.7,3.02048]
[1736515540452,3.01972,3311.6,3310.7,3.02048]
[1736515540634,9.18307664,3311.8,3310.8,0.0302023]
[1736515540840,9.18307664,3311.8,3310.9,0.8239]
[1736515541037,0.91830766,3311.7,3310.9,0.8239]
[1736515541213,0.91830766,3311.7,3311.0,0.04936927]
[1736515541850,3.93797766,3311.7,3311.0,0.04936927]
[1736515542353,0.94852967,3311.7,3311.0,0.04936927]
[1736515543182,0.03022201,3311.7,3311.0,0.04936927]
[1736515546326,0.8298,3311.6,3311.0,0.04936927]
[1736515546525,3.05006201,3311.5,3311.1,0.21]
[1736515546945,3.01984,3311.5,3311.2,0.04894694]
[1736515547261,3.0196,3311.7,3311.2,0.04894694]
[1736515547693,3.0196,3311.7,3311.1,0.21]
[1736515547898,3.0196,3311.7,3311.2,0.04894694]
[1736515548497,0.03022201,3311.6,3311.2,0.04894694]
[1736515548706,0.03022201,3311.8,3311.2,0.04894694]
[1736515548859,3.01986,3311.5,3311.2,0.04894694]
[1736515549061,0.03022201,3311.4,3311.1,0.21]
[1736515549424,0.03022201,3311.4,3311.2,0.04894694]
[1736515549701,3.01964,3311.7,3311.1,0.21]
[1736515549997,3.01964,3311.7,3311.2,0.04894694]
[1736515550192,3.01943,3311.9,3311.2,0.04894694]
[1736515550574,3.01943,3311.9,3311.1,0.21]
[1736515550776,3.01952,3311.8,3311.3,0.04889492]
[1736515550973,3.01952,3311.8,3311.2,0.04894694]
[1736515551167,3.04982201,3311.7,3311.4,0.0488429]
[1736515551404,3.04982201,3311.7,3311.3,0.04889492]
[1736515551581,3.04982201,3311.7,3311.1,0.21]
[1736515552197,3.0197,3311.6,3311.2,0.04894694]
[1736515553097,0.7582,3312.2,3311.2,0.04894694]
[1736515553303,3.77738,3312.2,3311.3,0.8272]
[1736515553456,3.0,3312.1,3311.4,0.0488429]
[1736515553858,6.01926,3312.1,3311.4,0.0488429]
[1736515554901,6.01926,3312.1,3311.3,0.8272]
[1736515555096,6.01926,3312.1,3311.4,0.04813917]
[1736515555313,3.0194,3312.0,3311.4,0.04813917]
[1736515555687,0.7582,3312.2,3311.4,0.03019698]
[1736515555894,3.04945201,3312.1,3311.5,0.04808715]
[1736515556191,3.04945201,3312.1,3311.3,0.8272]
[1736515556718,3.04945201,3312.1,3311.4,0.04813917]
[1736515556931,0.03022201,3312.1,3311.4,0.04813917]
[1736515557236,0.7582,3312.2,3311.4,0.07833395]
[1736515557435,3.01911,3312.3,3311.5,0.8124]
[1736515557594,0.03022201,3312.4,3311.7,3.01958]
[1736515557803,0.03022201,3312.4,3311.8,0.8326]
[1736515558025,0.03022201,3312.4,3311.8,0.88053112]
[1736515560640,5.35213664,3312.5,3311.8,0.91072308]
[1736515560786,0.03022201,3312.4,3311.8,0.88053112]
[1736515560989,3.01879,3312.6,3311.8,0.91072308]
[1736515562116,3.04912201,3312.5,3311.8,0.88053112]
[1736515562293,3.01903,3312.4,3311.8,0.88053112]
[1736515562494,3.04933201,3312.3,3311.8,0.8326]
[1736515562919,3.0,3312.7,3311.8,0.8326]
[1736515563115,3.01887,3312.5,3311.8,0.8326]
[1736515563739,6.01871,3312.7,3311.8,0.8326]
[1736515563905,3.01897,3312.4,3311.8,0.8326]
[1736515564106,0.03022201,3312.3,3311.9,0.04787912]
[1736515564326,3.0189,3312.5,3312.0,0.21]
[1736515564531,9.18751664,3312.8,3312.0,0.21]
[1736515564713,3.01879,3312.6,3312.0,0.21]
[1736515565048,3.01879,3312.6,3312.1,0.04777512]
[1736515565844,0.03022201,3312.5,3312.1,0.04777512]
[1736515566045,3.01886,3312.6,3312.1,0.04777512]
[1736515566245,0.03022201,3312.5,3312.2,0.21]
[1736515566451,3.01899,3312.4,3312.2,0.21]
[1736515566672,0.03022201,3312.3,3312.2,0.21]
[1736515566841,3.01905,3312.3,3312.2,0.21]
[1736515568161,3.01888,3312.5,3312.2,0.21]
[1736515568458,0.03022201,3312.4,3312.2,0.21]
[1736515568658,3.01888,3312.5,3312.2,0.21]
[1736515570758,3.01897,3312.4,3312.2,0.21]
[1736515570923,0.03022201,3312.3,3312.2,0.21]
[1736515571123,3.04927201,3312.3,3312.2,0.21]
[1736515572461,0.03022201,3312.3,3312.2,0.21]
[1736515572773,3.01898,3312.4,3312.2,0.25758163]
[1736515573064,0.03022201,3312.3,3312.2,0.25758163]
[1736515573259,0.03022201,3312.3,3312.2,0.21]
[1736515573561,0.03022201,3312.3,3312.2,0.25758163]
[1736515574347,3.01898,3312.4,3312.2,0.25758163]
[1736515574730,3.01898,3312.4,3312.2,0.21]
[1736515575070,2.78272712,3312.6,3312.2,0.21]
[1736515575071,3.01888,3312.5,3312.2,0.21]
[1736515575450,0.03022201,3312.4,3312.2,0.21]
[1736515576675,0.7821,3312.3,3311.9,0.209]
[1736515576868,0.03022201,3312.2,3311.9,0.209]
[1736515577073,0.03022201,3312.2,3312.0,0.04768978]
[1736515578061,8.37136664,3312.1,3312.0,0.04768978]
[1736515578384,3.01932,3312.0,3311.9,0.209]
[1736515578567,3.04954201,3312.0,3311.3,0.7705]
[1736515578756,3.04954201,3312.0,3311.4,0.209]
[1736515578943,3.04954201,3312.0,3311.4,0.25700183]
[1736515579270,3.04954201,3312.0,3311.4,0.209]
[1736515579789,3.01942,3311.9,3311.5,0.209]
[1736515579946,0.03022201,3311.8,3311.5,0.209]
[1736515580148,0.03022201,3311.8,3311.6,0.0478978]
[1736515580960,0.03022201,3312.0,3311.6,0.0478978]
[1736515581161,8.37142664,3312.1,3311.6,0.0478978]
[1736515581542,0.03022201,3312.0,3311.6,0.0478978]
[1736515582384,3.01943,3311.9,3311.6,0.0478978]
[1736515582580,3.01959,3311.7,3311.6,0.0478978]
[1736515583086,3.04981201,3311.7,3311.5,0.209]
[1736515583382,3.04981201,3311.7,3311.6,0.04589873]
[1736515583548,0.03022201,3311.7,3311.6,0.04589873]
[1736515583746,0.03022201,3311.7,3311.5,0.209]
[1736515583945,0.03022201,3311.7,3311.6,0.04664719]
[1736515584189,3.04981201,3311.7,3311.6,0.04664719]
[1736515585478,3.71177592,3311.7,3311.5,0.209]
[1736515585682,3.04981201,3311.7,3311.5,0.209]
[1736515585883,0.03022201,3311.7,3311.5,0.209]
[1736515586060,0.03022201,3311.7,3311.6,0.04589873]
[1736515586262,0.03022201,3311.9,3311.6,0.04589873]
[1736515586462,0.03022201,3311.9,3311.5,1.0343]
[1736515586872,3.04965201,3311.9,3311.5,1.0343]
[1736515587474,3.04965201,3311.9,3311.6,0.04808507]
[1736515587698,1.52968359,3311.9,3311.5,0.209]
[1736515587986,3.01968,3311.6,3311.5,0.209]
[1736515589779,3.01968,3311.6,3311.5,0.209]
[1736515591465,6.12353664,3311.7,3311.5,0.209]
[1736515591661,5.35213664,3311.7,3311.5,0.209]
[1736515592063,5.35213664,3311.7,3311.6,0.04795838]
[1736515593792,5.35213664,3311.7,3311.5,0.209]
[1736515594199,5.35213664,3311.7,3311.6,0.04808507]
[1736515594393,8.37172664,3311.7,3311.6,0.04808507]
[1736515594603,5.35213664,3311.7,3311.6,0.04808507]
[1736515594771,5.38235865,3311.7,3311.5,0.209]
[1736515594972,5.38235865,3311.7,3311.6,0.04808507]
[1736515596095,5.35213664,3311.7,3311.6,0.04808507]
[1736515597101,0.03022201,3311.9,3311.6,0.04808507]
[1736515599363,3.04963201,3311.9,3311.6,0.04808507]
[1736515600574,3.04963201,3311.9,3311.5,0.209]
[1736515600774,3.04963201,3311.9,3311.7,0.04740781]
[1736515600998,3.04963201,3311.9,3311.6,0.0474598]
[1736515601196,3.04963201,3311.9,3311.5,0.209]
[1736515601402,3.04963201,3311.9,3311.7,0.04778256]
[1736515601565,3.04963201,3311.9,3311.6,0.048006]
[1736515601767,3.01941,3311.9,3311.5,0.209]
[1736515601967,3.01941,3311.9,3311.7,0.047954]
[1736515602200,0.03022201,3311.8,3311.6,0.048006]
[1736515602523,0.03022201,3311.8,3311.5,0.209]
[1736515604270,0.03022201,3311.8,3311.6,0.209]
[1736515604801,0.7586,3312.3,3311.6,1.0394]
[1736515604981,3.01899,3312.4,3311.6,1.0394]
[1736515605579,9.12960664,3312.5,3311.6,4.05902]
[1736515605783,5.35213664,3312.5,3311.8,0.7711]
[1736515608006,6.15513664,3312.9,3312.0,3.01926]
[1736515608174,6.15513664,3312.9,3312.1,0.79809019]
[1736515608175,5.35213664,3312.9,3312.1,0.79809019]
[1736515608505,5.35213664,3312.9,3312.2,0.04695743]
[1736515608712,6.13623664,3313.2,3312.1,0.79809019]
[1736515608916,10.04639302,3313.2,3312.3,3.01897]
[1736515609107,10.04639302,3313.2,3312.5,0.7679]
[1736515609272,10.04639302,3313.2,3312.6,0.208]
[1736515609476,10.04639302,3313.2,3312.6,0.25474948]
[1736515609880,3.04856201,3313.1,3312.6,0.25474948]
[1736515610405,3.04856201,3313.1,3312.6,0.208]
[1736515612474,0.03022201,3313.1,3312.6,0.208]
[1736515612695,3.01843,3313.0,3312.6,0.208]
[1736515612873,0.03022201,3312.9,3312.6,0.208]
[1736515613816,0.03022201,3313.1,3312.6,0.208]
[1736515613984,9.15450664,3313.2,3312.6,0.208]
[1736515614315,6.13623664,3313.2,3312.6,0.208]
[1736515614524,3.01834,3313.1,3312.7,0.04657687]
[1736515614818,3.01834,3313.1,3312.6,0.208]
[1736515614987,5.35213664,3313.2,3312.7,0.8261]
[1736515615184,5.35213664,3313.2,3312.7,0.90284812]
[1736515615499,5.35213664,3313.2,3312.7,0.87266439]
[1736515615711,5.35213664,3313.2,3312.7,0.90284812]
[1736515616079,6.17493664,3313.7,3312.7,0.90284812]
[1736515616274,0.8228,3314.1,3312.7,0.07674812]
[1736515616472,0.8228,3314.1,3312.9,0.8312]
[1736515616712,5.35213664,3314.2,3313.1,0.8312]
[1736515616911,5.35213664,3314.2,3313.4,0.8312]
[1736515617077,5.35213664,3314.2,3313.5,0.208]
[1736515617273,5.35213664,3314.2,3313.5,0.25393658]
[1736515618277,5.35213664,3314.2,3313.6,0.7648]
[1736515618484,3.01717,3314.4,3313.6,0.79497748]
[1736515618685,3.01719,3314.4,3313.7,0.04583268]
[1736515618978,3.01719,3314.4,3313.8,0.7648]
[1736515619380,3.01719,3314.4,3313.9,0.04490962]
[1736515619603,6.14983664,3314.7,3313.9,0.04490962]
[1736515619604,3.0171,3314.5,3313.9,0.04490962]
[1736515619980,0.03022201,3314.4,3313.9,0.04490962]
[1736515620212,3.04737201,3314.4,3313.9,0.04490962]
[1736515620715,3.01742,3314.1,3313.9,0.04490962]
[1736515620920,0.03022201,3314.0,3313.8,0.7648]
[1736515621121,3.01742,3314.1,3313.8,0.7648]
[1736515621304,0.03022201,3314.0,3313.8,0.7648]
[1736515621622,3.01742,3314.1,3313.8,0.7648]
[1736515621789,3.01724,3314.3,3313.8,0.7648]
[1736515622777,0.03022201,3314.2,3313.8,0.7648]
[1736515623209,3.04754201,3314.2,3313.8,0.7648]
[1736515624009,3.01741,3314.1,3313.8,0.7648]
[1736515624213,3.01725,3314.3,3313.8,0.7648]
[1736515624386,0.03022201,3314.2,3313.8,0.7648]
[1736515625179,3.04759201,3314.2,3313.8,0.7648]
[1736515626979,0.03022201,3314.2,3313.5,0.208]
[1736515627179,3.0177,3313.8,3313.5,0.9728]
[1736515627634,3.0177,3313.8,3313.6,0.04493661]
[1736515628085,3.0177,3313.8,3313.5,0.9728]
[1736515628606,3.04774201,3314.0,3313.5,0.9728]
[1736515628809,3.01752,3314.0,3313.5,0.9728]
[1736515629006,3.01752,3314.0,3313.6,0.04493661]
[1736515629218,0.03022201,3313.9,3313.6,0.04493661]
[1736515629925,3.01752,3314.0,3313.6,0.04493661]
[1736515630101,3.01752,3314.0,3313.5,0.9728]
[1736515630309,3.01752,3314.0,3313.6,0.04457505]
[1736515630512,0.03022201,3313.9,3313.6,0.04457505]
[1736515631226,3.01752,3314.0,3313.6,0.04457505]
[1736515631553,3.01736,3314.2,3313.6,0.04457505]
[1736515631712,0.03022201,3314.1,3313.5,0.9728]
[1736515631903,0.03022201,3314.1,3313.6,0.0445709]
[1736515633049,3.01736,3314.2,3313.6,0.0445709]
[1736515633648,3.01736,3314.2,3313.7,0.8114]
[1736515634017,3.01736,3314.2,3313.8,0.0444587]
[1736515634328,3.01736,3314.2,3313.9,0.04440675]
[1736515634640,5.35213664,3314.3,3313.7,0.8114]
[1736515634845,0.03022201,3314.2,3314.0,0.04435482]
[1736515635016,0.03022201,3314.2,3313.7,0.8114]
[1736515635214,3.01723,3314.3,3314.1,0.04430288]
[1736515635410,3.01723,3314.3,3314.2,0.8114]
[1736515635815,3.01733,3314.2,3313.6,0.8114]
[1736515636051,0.7722,3314.3,3313.7,0.208]
[1736515636255,3.01766,3313.9,3313.7,0.25245247]
[1736515636455,3.01766,3313.9,3313.7,0.208]
[1736515636764,3.01766,3313.9,3313.8,0.04440053]
[1736515636945,3.01766,3313.9,3313.7,0.208]
[1736515637141,3.01766,3313.9,3313.8,0.25170951]
[1736515637442,3.01766,3313.9,3313.8,0.208]
[1736515639478,3.01742,3314.1,3313.8,0.208]
[1736515639675,3.01725,3314.3,3313.8,0.208]
[1736515639882,0.03022201,3314.2,3313.8,0.208]
[1736515640189,0.03022201,3314.2,3313.9,0.04441922]
[1736515642100,3.0175,3314.0,3313.9,0.04441922]
[1736515642498,3.0175,3314.0,3313.8,0.208]
[1736515642862,0.03022201,3313.9,3313.8,0.208]
[1736515643699,3.0175,3314.0,3313.8,0.208]
[1736515644097,0.03022201,3313.9,3313.8,0.208]
[1736515644284,3.01744,3314.1,3313.8,0.208]
[1736515644486,0.03022201,3314.0,3313.8,0.208]
[1736515646707,3.01744,3314.1,3313.8,0.208]
[1736515647603,6.84327,3314.5,3313.8,0.208]
[1736515647604,3.8262,3314.5,3313.8,0.208]
[1736515647903,6.8433,3314.5,3313.8,0.208]
[1736515648107,6.0171,3314.5,3313.9,0.7728]
[1736515648274,5.35213664,3314.6,3313.9,0.7728]
[1736515648464,5.35213664,3314.6,3314.0,0.04430912]
[1736515648670,8.36916664,3314.6,3314.0,0.04430912]
[1736515649115,5.35213664,3314.6,3314.0,0.04430912]
[1736515649311,3.7832,3315.0,3314.1,3.85256245]
[1736515649813,3.7832,3315.0,3314.2,0.04410138]
[1736515650330,3.01668,3314.9,3314.2,0.04410138]
[1736515652314,3.7666,3315.0,3314.2,0.04410138]
[1736515652518,6.78321,3315.0,3314.2,0.04410138]
[1736515653646,3.78321,3315.0,3314.2,0.04410138]
[1736515654318,3.01661,3315.0,3314.3,0.7556]
[1736515654722,3.01661,3315.0,3314.4,0.04350318]
[1736515655720,3.04691201,3314.9,3314.4,0.04350318]
[1736515656188,0.03022201,3314.9,3314.4,0.04350318]
[1736515656384,2.78272712,3314.7,3313.8,0.8138]
[1736515656601,2.78272712,3314.7,3313.9,0.208]
[1736515656602,0.03022201,3314.6,3313.9,0.208]
[1736515656807,3.01709,3314.5,3313.9,0.208]
[1736515657032,0.8249,3314.3,3313.9,0.208]
[1736515657307,3.04754201,3314.2,3314.0,0.03651029]
[1736515657521,3.04754201,3314.2,3313.9,0.208]
[1736515658025,3.01732,3314.2,3313.9,0.208]
[1736515658231,3.01715,3314.4,3313.9,0.208]
[1736515658402,6.7691,3314.6,3313.9,0.208]
[1736515658604,0.03022201,3314.5,3313.9,3.22558]
[1736515658804,0.03022201,3314.6,3314.0,0.85874828]
[1736515659022,0.03022201,3314.6,3314.0,3.87623828]
[1736515659314,0.03022201,3314.6,3314.0,0.85874828]
[1736515660303,0.03022201,3314.6,3314.0,3.05530828]
[1736515660642,5.35213664,3314.7,3314.1,3.78148]
[1736515661007,5.35213664,3314.7,3314.2,0.03692109]
[1736515662650,5.35213664,3314.7,3314.3,0.766]
[1736515662953,0.03022201,3315.0,3314.3,0.766]
[1736515663118,0.03022201,3315.0,3314.4,0.03853831]
[1736515663304,3.01651,3315.1,3314.4,0.03853831]
[1736515663509,0.03022201,3315.0,3314.4,0.03853831]
[1736515667446,0.03022201,3315.0,3314.5,0.208]
[1736515667622,3.0166,3315.0,3314.5,0.2464616]
[1736515667822,0.03022201,3314.9,3314.5,0.2464616]
[1736515668736,0.03022201,3315.0,3314.5,0.2464616]
[1736515669424,3.04681201,3315.0,3314.5,0.2464616]
[1736515672868,3.04681201,3315.0,3314.6,0.7769]
[1736515673256,3.04681201,3315.0,3314.7,0.03832478]
[1736515676868,9.60979712,3314.8,3314.7,0.03832478]
[1736515677064,7.79107191,3314.8,3314.1,0.208]
[1736515677227,3.01731,3314.2,3314.1,0.208]
[1736515677766,0.8103,3314.4,3314.2,0.7568]